bitfinex-derivatives/quotes_ETHF0:USTF0_20250420
["timestamp","ask_amount","ask_price","bid_price","bid_amount"]
[1745131776011,0.95473,1605.1,1605.0,9.00476167]
[1745131776214,1e-05,1605.1,1605.0,14.00476167]
[1745131776513,1e-05,1605.1,1605.0,18.31376167]
[1745131778017,1e-05,1605.1,1605.0,13.31376167]
[1745131778413,1e-05,1605.1,1605.0,18.31376167]
[1745131778607,1e-05,1605.1,1605.0,13.31376167]
[1745131779316,1e-05,1605.4,1605.3,5.79673167]
[1745131779516,1e-05,1605.4,1605.3,13.31253167]
[1745131779717,1e-05,1605.4,1605.3,18.31253167]
[1745131779906,1e-05,1605.4,1605.3,20.06503167]
[1745131781220,0.47292,1605.4,1605.3,20.06503167]
[1745131781419,1e-05,1605.4,1605.3,20.06503167]
[1745131784015,1e-05,1605.4,1605.3,15.06503167]
[1745131786815,1e-05,1605.4,1605.3,11.85723167]
[1745131787022,1e-05,1605.4,1605.3,15.06503167]
[1745131789427,1e-05,1605.4,1605.3,4.45377]
[1745131789626,0.82011,1605.4,1605.3,4.45377]
[1745131790119,0.82011,1605.4,1605.3,1.24597]
[1745131790320,0.82011,1605.4,1605.3,4.45377]
[1745131791230,1e-05,1605.4,1605.3,4.45377]
[1745131791727,1e-05,1605.4,1605.3,9.00453167]
[1745131792623,1e-05,1605.4,1605.3,10.63683167]
[1745131795132,1.6696,1605.6,1605.5,1.24581]
[1745131795317,1.6696,1605.6,1605.5,9.00437167]
[1745131795816,1.6696,1605.6,1605.5,9.81097167]
[1745131796020,1.6696,1605.6,1605.5,6.60317167]
[1745131796320,3.8976,1605.6,1605.5,9.81097167]
[1745131797132,2.228,1605.6,1605.5,9.81097167]
[1745131797631,3.8944,1605.6,1605.5,9.81097167]
[1745131798335,3.8944,1605.6,1605.5,4.45361]
[1745131798527,5.6294,1605.6,1605.5,4.45361]
[1745131800329,4.7639,1605.6,1605.5,13.25437167]
[1745131800531,3.8944,1605.6,1605.5,13.25437167]
[1745131800728,1.6094,1605.9,1605.8,1.24558]
[1745131800927,2.4215,1605.9,1605.8,4.45338]
[1745131801231,2.4215,1605.9,1605.6,4.45351]
[1745131801232,1.2456,1605.8,1605.6,4.45351]
[1745131801432,0.8107,1605.7,1605.6,4.45351]
[1745131801828,7.05636,1605.7,1605.6,3.2078]
[1745131802035,7.4335,1605.7,1605.6,3.2078]
[1745131802335,9.6615,1605.7,1605.6,3.2078]
[1745131802533,10.90716,1605.7,1605.6,3.2078]
[1745131802941,9.6615,1605.7,1605.6,4.45353]
[1745131803341,10.90716,1605.7,1605.6,4.45353]
[1745131803542,9.6615,1605.7,1605.6,4.45353]
[1745131804142,4.6615,1605.7,1605.6,4.45353]
[1745131818339,8.77807282,1605.7,1605.6,4.45353]
[1745131818850,7.96737282,1605.7,1605.6,4.45353]
[1745131821958,10.85558439,1605.7,1605.6,4.45353]
[1745131822145,12.10124439,1605.7,1605.6,1.24573]
[1745131822742,12.10124439,1605.7,1605.5,2.12245]
[1745131822942,2.5048,1605.6,1605.5,6.67321167]
[1745131823139,4.7328,1605.6,1605.5,1.24575]
[1745131824153,4.7328,1605.6,1605.5,5.79651167]
[1745131825451,4.7328,1605.6,1605.5,7.39321167]
[1745131825953,11.73758439,1605.6,1605.5,7.39321167]
[1745131828350,10.88378439,1605.6,1605.5,7.39321167]
[1745131828555,9.23278439,1605.6,1605.5,8.27261167]
[1745131830055,10.98708439,1605.6,1605.5,8.27261167]
[1745131832553,10.98708439,1605.6,1605.5,5.79651167]
[1745131833849,12.23281439,1605.6,1605.4,2.84413]
[1745131834060,1.6955,1605.5,1605.4,2.84413]
[1745131834247,1.6955,1605.5,1605.4,1.24583]
[1745131834452,1.6955,1605.5,1605.4,5.79659167]
[1745131835259,3.9235,1605.5,1605.4,5.79659167]
[1745131837561,1.2459,1605.4,1605.2,1.24601]
[1745131837758,2.5964,1605.3,1605.2,1.24601]
[1745131838062,2.5964,1605.3,1605.2,1.24605]
[1745131839166,4.8244,1605.3,1605.2,1.24605]
[1745131842267,13.90689701,1605.3,1605.2,1.24605]
[1745131843354,13.90689701,1605.3,1605.1,1.24608]
[1745131843562,1.6921,1605.2,1605.1,1.24608]
[1745131844073,3.9201,1605.2,1605.1,5.79684167]
[1745131846571,8.83902735,1605.2,1605.1,5.79684167]
[1745131847563,8.83902735,1605.2,1605.1,7.54184167]
[1745131849069,7.14692735,1605.2,1605.1,7.54184167]
[1745131850268,4.91892735,1605.2,1605.1,7.54184167]
[1745131850769,4.91892735,1605.2,1605.1,10.74964167]
[1745131850973,4.12448781,1605.2,1605.1,10.74964167]
[1745131852065,4.12448781,1605.2,1605.1,15.74964167]
[1745131852669,4.12448781,1605.2,1605.1,10.74964167]
[1745131853465,2.87865781,1605.2,1605.1,15.74964167]
[1745131853970,2.87865781,1605.2,1605.1,12.54184167]
[1745131854169,2.87865781,1605.2,1605.1,15.74964167]
[1745131854865,6.18673172,1605.5,1605.4,1.24589]
[1745131855065,8.41473172,1605.5,1605.4,4.45369]
[1745131855270,8.41473172,1605.5,1605.4,9.00445167]
[1745131855470,8.41473172,1605.5,1605.4,10.62065167]
[1745131859172,2.228,1605.5,1605.4,10.62065167]
[1745131859771,2.228,1605.5,1605.4,7.75856167]
[1745131860074,8.136,1605.5,1605.2,4.45381]
[1745131860375,3.3081,1605.4,1605.3,4.55076167]
[1745131860571,3.3081,1605.4,1605.2,5.79677167]
[1745131860777,1.68,1605.3,1605.2,4.55076167]
[1745131860973,1.68,1605.3,1605.2,9.00461167]
[1745131861276,3.908,1605.3,1605.2,9.00461167]
[1745131864278,3.908,1605.3,1605.2,5.79681167]
[1745131864475,3.908,1605.3,1605.1,4.45387]
[1745131864779,2.228,1605.3,1605.2,1.24605]
[1745131866175,2.228,1605.3,1605.2,7.48501167]
[1745131866376,2.228,1605.3,1605.2,8.30671167]
[1745131867480,2.228,1605.3,1605.2,11.51451167]
[1745131867672,3.02267206,1605.3,1605.2,9.00461167]
[1745131868574,3.02267206,1605.3,1605.2,10.75401167]
[1745131869178,0.79467206,1605.3,1605.2,10.75401167]
[1745131871583,6.18673172,1605.4,1605.3,1.24597]
[1745131871885,6.18673172,1605.4,1605.3,5.79673167]
[1745131872383,6.18673172,1605.4,1605.3,7.53523167]
[1745131873886,6.18673172,1605.4,1605.3,11.69523167]
[1745131874096,6.18673172,1605.6,1605.5,1.24581]
[1745131874386,6.18673172,1605.6,1605.5,9.00437167]
[1745131874773,6.18673172,1605.6,1605.5,10.75237167]
[1745131878484,9.13205172,1605.9,1605.7,1.24565]
[1745131878683,1.5881,1605.8,1605.7,9.00421167]
[1745131878882,2.83368,1605.8,1605.6,5.40472]
[1745131879087,5.06168,1605.8,1605.7,4.55076167]
[1745131879292,3.47358,1605.8,1605.7,4.55076167]
[1745131879589,3.47358,1605.8,1605.6,8.61252]
[1745131879787,3.47358,1605.8,1605.7,4.55076167]
[1745131880286,3.47358,1605.8,1605.6,4.45352]
[1745131880484,3.47358,1605.8,1605.7,4.55076167]
[1745131880990,3.47358,1605.8,1605.6,1.24572]
[1745131881189,3.47358,1605.8,1605.7,4.55076167]
[1745131881689,3.47358,1605.8,1605.6,1.24572]
[1745131882277,4.26802483,1605.8,1605.6,1.24572]
[1745131882789,1.24566,1605.7,1605.5,1.24575]
[1745131882992,0.8278,1605.6,1605.5,5.79651167]
[1745131883287,1.6899,1605.6,1605.5,1.24575]
[1745131884187,3.9179,1605.6,1605.5,1.24575]
[1745131886087,3.0558,1605.6,1605.5,5.79651167]
[1745131886783,2.228,1605.6,1605.5,7.45181167]
[1745131887190,5.908,1605.7,1605.6,1.24573]
[1745131887390,5.908,1605.7,1605.6,11.49659167]
[1745131888197,8.136,1605.7,1605.6,11.49659167]
[1745131889109,5.908,1605.7,1605.6,11.49659167]
[1745131889890,8.41473172,1605.8,1605.7,1.24566]
[1745131890197,8.41473172,1605.8,1605.7,5.79642167]
[1745131890398,2.228,1605.8,1605.7,6.64192167]
[1745131891296,2.228,1605.8,1605.7,8.22852167]
[1745131894601,2.228,1605.8,1605.7,12.36052167]
[1745131898094,0.8844,1605.9,1605.7,11.11486167]
[1745131898301,0.8844,1605.9,1605.8,9.00414167]
[1745131898500,2.5696,1605.9,1605.8,10.64744167]
[1745131899098,4.7976,1605.9,1605.8,10.64744167]
[1745131905305,3.9132,1605.9,1605.8,10.64744167]
[1745131908002,2.228,1605.9,1605.8,10.64744167]
[1745131909312,3.9878,1606.0,1605.9,1.2455]
[1745131909606,3.9878,1606.0,1605.9,5.79626167]
[1745131912211,3.9878,1606.0,1605.9,7.42826167]
[1745131912611,3.9878,1606.0,1605.9,8.23746167]
[1745131914813,3.9878,1606.0,1605.9,11.44526167]
[1745131918720,3.9878,1606.0,1605.9,9.00406167]
[1745131918915,4.8525,1606.0,1605.9,9.00406167]
[1745131919314,6.09792,1606.0,1605.9,3.2078]
[1745131919513,9.8525,1606.0,1605.7,3.2078]
[1745131919714,2.84493,1605.9,1605.7,4.4534]
[1745131919923,2.4797,1605.8,1605.7,4.4534]
[1745131920122,4.7077,1605.8,1605.7,4.4534]
[1745131924827,4.7077,1605.8,1605.7,9.00416167]
[1745131925028,4.7077,1605.8,1605.7,10.63896167]
[1745131930149,4.7077,1605.8,1605.7,9.00416167]
[1745131933751,4.7077,1605.8,1605.7,3.2078]
[1745131934140,5.95328,1605.8,1605.5,8.1538]
[1745131934342,2.5077,1605.7,1605.6,5.79648167]
[1745131935051,2.5077,1605.7,1605.6,1.24572]
[1745131935242,4.7357,1605.7,1605.6,1.24572]
[1745131937762,11.7168887,1605.7,1605.6,1.24572]
[1745131938656,11.7168887,1605.7,1605.6,1.24573]
[1745131939554,17.6248887,1605.7,1605.6,1.24573]
[1745131941241,16.7383887,1605.7,1605.6,1.24573]
[1745131942445,16.7383887,1605.7,1605.6,5.79649167]
[1745131942645,16.7383887,1605.7,1605.6,8.40459167]
[1745131943239,12.8891887,1605.7,1605.6,8.40459167]
[1745131944046,15.1171887,1605.7,1605.6,8.40459167]
[1745131944453,15.1171887,1605.7,1605.6,13.40459167]
[1745131945252,12.8891887,1605.7,1605.6,11.61239167]
[1745131945452,6.9811887,1605.7,1605.6,11.61239167]
[1745131946343,8.6545887,1605.7,1605.6,11.61239167]
[1745131946850,1.6734,1605.7,1605.6,11.61239167]
[1745131948659,1.6734,1605.7,1605.6,9.00429167]
[1745131949151,3.9014,1605.7,1605.6,9.00429167]
[1745131949859,3.9014,1605.7,1605.6,13.06629167]
[1745131954651,3.9014,1605.7,1605.6,9.85849167]
[1745131957752,3.9014,1605.7,1605.6,13.06629167]
[1745131958163,3.9014,1605.7,1605.5,1.5961]
[1745131958164,1.2458,1605.6,1605.2,3.2078]
[1745131958371,1.24581,1605.5,1605.3,4.55076167]
[1745131958565,1.7553,1605.4,1605.3,4.55076167]
[1745131958771,1.7553,1605.4,1605.3,1.24597]
[1745131959158,3.9833,1605.4,1605.3,1.24597]
[1745131961572,3.9833,1605.4,1605.3,5.79673167]
[1745131961774,3.9833,1605.4,1605.3,7.44813167]
[1745131964273,1.24597,1605.3,1605.1,5.3081]
[1745131964478,0.8696,1605.2,1605.1,9.85886167]
[1745131964769,1.7425,1605.2,1605.1,5.3081]
[1745131964969,3.3446,1605.2,1605.1,5.3081]
[1745131965173,5.5726,1605.2,1605.1,1.2461]
[1745131967468,5.5726,1605.2,1605.0,5.34414]
[1745131967673,1.6041,1605.1,1605.0,9.89496167]
[1745131970571,1.6041,1605.1,1605.0,6.68716167]
[1745131970778,1.6041,1605.1,1605.0,11.56566167]
[1745131973273,0.8696,1605.2,1605.1,1.24612]
[1745131973473,2.6032,1605.2,1605.1,5.79688167]
[1745131974071,2.6032,1605.2,1605.1,9.00468167]
[1745131974271,4.8312,1605.2,1605.1,9.00468167]
[1745131977082,4.8312,1605.2,1605.1,5.79688167]
[1745131978781,4.8312,1605.2,1605.1,1.24612]
[1745131983101,6.07725,1605.2,1605.1,1.24612]
[1745131983902,4.8312,1605.2,1605.1,1.24612]
[1745131984793,4.8312,1605.2,1605.1,4.45392]
[1745131986003,4.8312,1605.2,1605.1,1.24612]
[1745131986200,4.8312,1605.2,1605.1,4.45392]
[1745131986703,4.8312,1605.2,1605.1,9.00468167]
[1745131987807,3.9616,1605.2,1605.1,9.00468167]
[1745131988011,3.9616,1605.2,1605.1,10.60028167]
[1745131988307,7.6662,1605.3,1605.2,1.24605]
[1745131988507,7.6662,1605.3,1605.2,2.84165]
[1745131988911,7.6662,1605.3,1605.2,7.39241167]
[1745131989210,8.136,1605.3,1605.2,7.39241167]
[1745131991810,8.136,1605.3,1605.2,11.43641167]
[1745131992311,2.228,1605.3,1605.2,16.43641167]
[1745131992510,2.228,1605.3,1605.2,11.43641167]
[1745131992708,2.228,1605.3,1605.2,16.43641167]
[1745131992906,2.228,1605.3,1605.2,11.88565]
[1745131993108,4.11653451,1605.5,1605.4,1.24589]
[1745131993316,4.11653451,1605.5,1605.4,9.00445167]
[1745131993610,4.11653451,1605.5,1605.4,7.75856167]
[1745131993811,5.80673451,1605.5,1605.4,7.75856167]
[1745131994212,8.03473451,1605.5,1605.4,7.75856167]
[1745131995607,8.03473451,1605.5,1605.4,9.00445167]
[1745131995914,8.03473451,1605.5,1605.4,10.59795167]
[1745131996614,3.9182,1605.5,1605.4,10.59795167]
[1745131997001,2.228,1605.5,1605.4,10.59795167]
[1745131997506,3.9229,1605.5,1605.4,9.35206167]
[1745131997703,4.7508,1605.5,1605.4,9.00445167]
[1745131998611,2.228,1605.5,1605.4,9.00445167]
[1745131998812,2.228,1605.5,1605.4,10.71355167]
[1745131999214,4.11653451,1605.7,1605.6,1.24573]
[1745131999417,5.75363451,1605.7,1605.6,5.79649167]
[1745131999616,5.75363451,1605.7,1605.6,4.45353]
[1745131999810,5.75363451,1605.7,1605.6,6.99523]
[1745132000211,7.98163451,1605.7,1605.6,6.99523]
[1745132000614,7.98163451,1605.7,1605.6,11.54599167]
[1745132000912,3.8651,1605.7,1605.6,11.54599167]
[1745132001617,3.8651,1605.7,1605.6,9.83689167]
[1745132002418,5.11076,1605.7,1605.6,3.2078]
[1745132002613,3.8651,1605.7,1605.6,4.45353]
[1745132003711,4.7021,1605.7,1605.6,4.45353]
[1745132004112,14.72663451,1605.7,1605.6,4.45353]
[1745132005624,15.97229451,1605.7,1605.6,4.45353]
[1745132005822,15.97229451,1605.7,1605.6,3.2078]
[1745132007625,15.97229451,1605.7,1605.5,4.45359]
[1745132007827,2.5091,1605.6,1605.5,4.45359]
[1745132008124,4.7371,1605.6,1605.5,4.45359]
[1745132011728,4.7371,1605.6,1605.5,9.00435167]
[1745132014032,5.98283,1605.6,1605.5,9.00435167]
[1745132015631,5.98283,1605.6,1605.5,4.45359]
[1745132015823,4.7371,1605.6,1605.5,4.45359]
[1745132016931,5.98283,1605.6,1605.5,1.24579]
[1745132017128,4.7371,1605.6,1605.5,1.24579]
[1745132017832,5.98286,1605.6,1605.4,7.76815]
[1745132018031,2.98361,1605.5,1605.3,6.89644]
[1745132018233,1.7378,1605.4,1605.3,6.89644]
[1745132018629,1.7378,1605.4,1605.3,11.44720167]
[1745132019133,3.9658,1605.4,1605.3,11.44720167]
[1745132020835,3.9658,1605.4,1605.3,9.84550167]
[1745132021425,3.9658,1605.4,1605.3,11.51590167]
[1745132022228,1.7378,1605.4,1605.3,11.51590167]
[1745132024236,3.9658,1605.4,1605.3,11.51590167]
[1745132029443,2.228,1605.4,1605.3,11.51590167]
[1745132030142,4.11653451,1605.5,1605.4,1.24589]
[1745132030341,4.11653451,1605.5,1605.4,8.34685167]
[1745132031144,6.34453451,1605.5,1605.4,8.34685167]
[1745132031441,8.41473172,1605.5,1605.4,8.34685167]
[1745132032741,8.41473172,1605.5,1605.4,11.55465167]
[1745132033435,10.17683172,1605.5,1605.4,11.55465167]
[1745132035959,10.17683172,1605.5,1605.4,8.34685167]
[1745132036751,10.97136549,1605.5,1605.4,8.34685167]
[1745132038251,6.98126549,1605.5,1605.4,8.34685167]
[1745132039050,6.98126549,1605.5,1605.4,11.55465167]
[1745132039351,9.20926549,1605.5,1605.4,6.68965167]
[1745132039651,11.68286549,1605.5,1605.4,5.79665167]
[1745132040444,10.79656549,1605.5,1605.4,5.79665167]
[1745132040634,10.79656549,1605.5,1605.4,7.54555167]
[1745132042151,10.79656549,1605.5,1605.4,10.75335167]
[1745132043649,10.79656549,1605.5,1605.4,9.00445167]
[1745132043841,11.62816549,1605.5,1605.4,9.00445167]
[1745132044352,10.79656549,1605.5,1605.4,9.00445167]
[1745132044560,10.79656549,1605.5,1605.4,10.74355167]
[1745132045274,7.34036071,1605.5,1605.4,9.00445167]
[1745132045662,7.34036071,1605.5,1605.4,4.45369]
[1745132045961,7.34036071,1605.5,1605.4,3.2078]
[1745132046163,9.56836071,1605.5,1605.4,4.45369]
[1745132047351,9.56836071,1605.5,1605.4,1.24589]
[1745132048655,9.56836071,1605.5,1605.3,7.88401]
[1745132048950,2.5878,1605.4,1605.3,7.88401]
[1745132049158,4.8158,1605.4,1605.3,12.43477167]
[1745132050053,4.8158,1605.4,1605.3,9.22697167]
[1745132053254,2.5878,1605.4,1605.3,12.43477167]
[1745132053854,13.6975849,1605.4,1605.3,12.43477167]
[1745132054243,15.9255849,1605.4,1605.3,12.43477167]
[1745132055645,15.0332849,1605.4,1605.3,12.43477167]
[1745132056141,12.8052849,1605.4,1605.3,12.43477167]
[1745132056548,11.1097849,1605.4,1605.3,12.43477167]
[1745132057852,6.98126549,1605.4,1605.3,12.43477167]
[1745132062258,10.01615747,1605.5,1605.4,1.24589]
[1745132062259,7.91483172,1605.5,1605.4,1.24589]
[1745132062558,7.91483172,1605.5,1605.4,10.59475167]
[1745132063659,7.91483172,1605.5,1605.4,9.00445167]
[1745132064160,10.14283172,1605.5,1605.4,9.00445167]
[1745132065156,7.91483172,1605.5,1605.4,9.00445167]
[1745132066059,8.70936549,1605.5,1605.4,5.79665167]
[1745132066253,8.70936549,1605.5,1605.4,9.00445167]
[1745132068160,10.93736549,1605.5,1605.4,9.00445167]
[1745132071451,10.93736549,1605.5,1605.4,10.73745167]
[1745132071960,9.20926549,1605.5,1605.4,10.73745167]
[1745132072160,6.98126549,1605.5,1605.4,12.96545167]
[1745132073164,6.98126549,1605.5,1605.4,10.73745167]
[1745132074257,6.98126549,1605.5,1605.4,15.73745167]
[1745132074961,4.1292078,1605.6,1605.5,1.24581]
[1745132075257,4.1292078,1605.6,1605.5,13.08957167]
[1745132077055,4.1292078,1605.6,1605.5,20.31757167]
[1745132077759,2.6087578,1605.6,1605.5,20.31757167]
[1745132077960,0.0533678,1605.6,1605.5,20.31757167]
[1745132078161,7.8e-06,1605.6,1605.5,20.31757167]
[1745132078962,3.03706952,1605.7,1605.6,5.79649167]
[1745132079162,0.12257952,1605.7,1605.6,16.56359167]
[1745132079362,9.52e-06,1605.7,1605.6,21.56359167]
[1745132079555,2.614,1606.1,1605.9,1.2455]
[1745132079556,9.52e-06,1606.0,1605.9,1.2455]
[1745132079864,9.52e-06,1606.0,1605.9,8.4653]
[1745132080063,9.52e-06,1606.0,1605.9,13.01606167]
[1745132080458,9.52e-06,1606.0,1605.9,14.60616167]
[1745132080653,1.62960952,1606.0,1605.9,14.60616167]
[1745132081065,1.62960952,1606.0,1605.9,13.01606167]
[1745132081454,1.62960952,1606.0,1605.9,14.60616167]
[1745132082370,1.62960952,1606.0,1605.9,8.4653]
[1745132082560,1.62960952,1606.0,1605.9,13.01606167]
[1745132084459,0.8687,1606.3,1605.9,11.77056167]
[1745132084660,1.7392,1606.2,1606.1,4.55076167]
[1745132084864,1.7392,1606.2,1606.1,9.00391167]
[1745132086170,8.28805747,1606.5,1606.1,7.75856167]
[1745132086370,1.7392,1606.4,1606.3,4.55076167]
[1745132086571,1.7392,1606.4,1606.3,9.00375167]
[1745132087473,1.7392,1606.4,1606.3,4.45299]
[1745132090077,1.7392,1606.4,1606.3,9.00375167]
[1745132090477,1.7392,1606.4,1606.3,4.45299]
[1745132093076,1.7392,1606.4,1606.3,9.00375167]
[1745132094178,2.6034,1606.4,1606.3,9.00375167]
[1745132101175,2.6034,1606.4,1606.3,4.45299]
[1745132107082,2.6034,1606.4,1606.1,3.2078]
[1745132107385,1.5905,1606.3,1606.1,3.2078]
[1745132107588,2.05937,1606.2,1606.1,3.2078]
[1745132107783,2.93817,1606.2,1606.1,3.2078]
[1745132107986,7.93817,1606.2,1606.1,3.2078]
[1745132108178,9.60117,1606.2,1606.1,3.2078]
[1745132108484,4.60117,1606.2,1606.1,3.2078]
[1745132109186,4.60117,1606.2,1606.0,1.24538]
[1745132109486,1.663,1606.1,1606.0,1.24538]
[1745132110386,1.663,1606.1,1606.0,1.24542]
[1745132111986,2.90835,1606.1,1606.0,1.24542]
[1745132112484,2.90835,1606.1,1605.9,4.45324]
[1745132112685,1.6074,1606.0,1605.9,4.45324]
[1745132113082,2.459,1606.0,1605.9,4.45324]
[1745132114986,1.6074,1606.0,1605.9,4.45324]
[1745132115184,1.6074,1606.0,1605.9,6.96454]
[1745132115688,1.6074,1606.0,1605.9,11.51530167]
[1745132119093,1.6074,1606.0,1605.9,8.30750167]
[1745132119293,1.6074,1606.0,1605.9,11.51530167]
[1745132122392,1.6074,1606.0,1605.9,8.30750167]
[1745132123696,1.6074,1606.0,1605.9,11.51530167]
[1745132125596,1.6074,1606.0,1605.9,8.30750167]
[1745132127692,7.5737,1606.2,1606.1,1.24535]
[1745132127899,9.209,1606.2,1606.1,1.24535]
[1745132128299,8.3574,1606.2,1606.1,1.24535]
[1745132128599,7.5433,1606.2,1606.1,5.79611167]
[1745132128800,5.908,1606.2,1606.1,7.45051167]
[1745132129300,5.908,1606.2,1606.1,11.46151167]
[1745132130199,2.6459,1606.3,1606.2,1.24527]
[1745132130392,2.6459,1606.3,1606.2,9.00383167]
[1745132130592,2.6459,1606.3,1606.2,4.45307]
[1745132130792,1.7489,1606.3,1606.2,9.00383167]
[1745132131000,1.7489,1606.3,1606.2,12.27233167]
[1745132131697,1.7489,1606.3,1606.2,9.06453167]
[1745132132604,1.7489,1606.3,1606.2,1.24527]
[1745132139404,1.24535,1606.1,1605.9,5.25546]
[1745132139609,1.699,1606.0,1605.9,5.79626167]
[1745132139903,3.4147,1606.0,1605.9,5.79626167]
[1745132141617,3.4147,1606.0,1605.9,1.2455]
[1745132144534,3.4147,1606.0,1605.9,2.0882]
[1745132145237,3.4147,1606.0,1605.9,5.296]
[1745132145420,2.5902,1606.0,1605.9,5.296]
[1745132149937,2.5902,1606.0,1605.9,9.84676167]
[1745132150234,2.5902,1606.0,1605.9,10.66616167]
[1745132150538,1.699,1606.0,1605.9,10.66616167]
[1745132152939,1.699,1606.0,1605.9,7.45836167]
[1745132153238,1.699,1606.0,1605.9,10.66616167]
[1745132153635,6.18151128,1606.1,1606.0,1.24542]
[1745132153836,6.18151128,1606.1,1606.0,7.49478167]
[1745132157242,6.97572463,1606.1,1606.0,7.49478167]
[1745132161247,0.79421335,1606.1,1606.0,7.49478167]
[1745132162140,0.79421335,1606.1,1606.0,10.70258167]
[1745132163749,0.79421335,1606.1,1606.0,7.49478167]
[1745132163947,2.50641335,1606.1,1606.0,10.70258167]
[1745132165450,3.75176335,1606.1,1606.0,10.70258167]
[1745132165643,3.75176335,1606.1,1606.0,9.00398167]
[1745132165644,2.50641335,1606.1,1606.0,9.00398167]
[1745132165841,3.32951335,1606.1,1606.0,9.00398167]
[1745132166647,4.57486335,1606.1,1606.0,9.00398167]
[1745132167647,3.32951335,1606.1,1606.0,9.00398167]
[1745132168148,3.32951335,1606.1,1606.0,5.79618167]
[1745132168342,9.51102463,1606.1,1606.0,9.00398167]
[1745132169150,10.75637463,1606.1,1606.0,9.00398167]
[1745132169449,10.75637463,1606.1,1606.0,3.2078]
[1745132169750,10.75637463,1606.1,1606.0,4.45322]
[1745132170847,1.2455,1605.9,1605.7,1.24561]
[1745132171049,0.8502,1605.8,1605.7,1.24561]
[1745132171249,2.5936,1605.8,1605.7,1.24561]
[1745132171942,2.5936,1605.8,1605.7,2.06411]
[1745132173153,2.5936,1605.8,1605.7,6.61487167]
[1745132173345,21.45360393,1606.1,1605.9,1.24545]
[1745132173638,1.7347,1606.0,1605.9,5.79621167]
[1745132173952,1.7347,1606.0,1605.9,2.92385]
[1745132174153,1.7347,1606.0,1605.9,8.36751167]
[1745132176447,8.71400884,1606.0,1605.9,8.36751167]
[1745132180458,2.52891335,1606.0,1605.9,8.36751167]
[1745132182562,0.79421335,1606.0,1605.9,8.36751167]
[1745132182765,0.79421335,1606.0,1605.9,11.57531167]
[1745132185468,0.79421335,1606.1,1606.0,1.24542]
[1745132185662,0.79421335,1606.1,1606.0,7.51978167]
[1745132186553,0.79421335,1606.1,1606.0,10.72758167]
[1745132190062,1.6861,1606.2,1606.1,1.24535]
[1745132190264,1.6861,1606.2,1606.1,8.37441167]
[1745132192366,6.18509549,1606.3,1606.2,1.24527]
[1745132192563,6.18509549,1606.3,1606.2,7.50793167]
[1745132192753,7.94529549,1606.3,1606.2,7.50793167]
[1745132194662,1.7602,1606.3,1606.2,7.50793167]
[1745132199970,1.7602,1606.3,1606.2,5.79603167]
[1745132200667,2.6482,1606.3,1606.2,1.24527]
[1745132202867,5.856,1606.3,1606.2,1.24527]
[1745132205468,1.24546,1606.0,1605.5,12.33772071]
[1745132205772,3.8035,1605.9,1605.7,5.79636167]
[1745132205968,1.7083,1605.8,1605.7,5.79636167]
[1745132206165,1.7083,1605.8,1605.6,9.52148106]
[1745132206477,2.95393,1605.8,1605.6,9.52153106]
[1745132206660,2.95393,1605.8,1605.6,5.79649167]
[1745132206958,1.7083,1605.7,1605.6,5.79649167]
[1745132209069,4.9161,1605.7,1605.6,5.79649167]
[1745132210271,1.7083,1605.7,1605.6,5.79649167]
[1745132212172,1.7083,1605.7,1605.6,4.55076167]
[1745132213275,10.03206318,1605.8,1605.6,5.79646167]
[1745132213474,1.7527,1605.7,1605.6,1.2457]
[1745132213860,1.7527,1605.7,1605.6,5.79646167]
[1745132214375,1.7527,1605.7,1605.6,4.55076167]
[1745132214564,1.7527,1605.7,1605.6,5.79649167]
[1745132215975,1.7527,1605.7,1605.6,7.49219167]
[1745132216873,10.03206318,1605.8,1605.7,1.24566]
[1745132217077,4.12406318,1605.8,1605.7,8.36992167]
[1745132217268,4.12406318,1605.8,1605.7,11.57772167]
[1745132217571,4.12406318,1605.8,1605.7,15.58772167]
[1745132217975,5.72466318,1605.9,1605.8,1.24558]
[1745132218168,5.72466318,1605.9,1605.8,8.29614167]
[1745132222174,1.6006,1605.9,1605.8,8.29614167]
[1745132223281,16.18556318,1606.1,1605.9,1.24547]
[1745132223282,14.94016318,1606.1,1605.9,1.24547]
[1745132223585,1.7197,1606.0,1605.9,7.53033167]
[1745132224578,10.91876318,1606.1,1606.0,1.24542]
[1745132224875,10.91876318,1606.1,1606.0,8.34878167]
[1745132225075,12.63846318,1606.1,1606.0,3.79802]
[1745132226882,6.73046318,1606.1,1606.0,3.79802]
[1745132227282,2.6064,1606.1,1606.0,3.79802]
[1745132228783,1.7197,1606.1,1606.0,8.34878167]
[1745132234585,6.7197,1606.1,1605.8,4.0328]
[1745132234889,2.06984,1606.0,1605.8,6.62132167]
[1745132235180,3.2078,1606.1,1605.8,5.37576167]
[1745132235388,1.7012,1606.1,1606.0,5.79618167]
[1745132235785,1.7012,1606.1,1606.0,8.29838167]
[1745132236590,0.8244,1606.2,1606.1,1.24535]
[1745132236887,2.5286,1606.2,1606.1,7.43971167]
[1745132238084,2.5286,1606.2,1606.1,1.24535]
[1745132243597,2.5286,1606.2,1606.1,5.79611167]
[1745132245399,6.98172,1606.2,1606.0,2.10401]
[1745132245591,2.5808,1606.1,1606.0,5.79617167]
[1745132248096,2.5808,1606.1,1605.8,2.4916]
[1745132248287,1.5892,1606.0,1605.7,3.2078]
[1745132248494,0.8236,1605.9,1605.7,4.55076167]
[1745132248692,1.5892,1605.8,1605.7,5.79637167]
[1745132258406,4.94766318,1605.9,1605.8,1.24558]
[1745132258610,6.57986318,1605.9,1605.8,6.63954167]
[1745132259113,7.82536318,1605.9,1605.8,6.63954167]
[1745132259807,7.82536318,1605.9,1605.7,1.24563]
[1745132260110,1.6322,1605.8,1605.7,5.79639167]
[1745132264121,1.6322,1605.8,1605.7,7.39179167]
[1745132264820,5.75626318,1605.8,1605.7,7.39179167]
[1745132265921,5.75626318,1605.8,1605.7,5.79639167]
[1745132266120,6.62186318,1605.8,1605.7,5.79639167]
[1745132266815,6.62186318,1605.8,1605.7,6.60909167]
[1745132267323,5.75626318,1605.8,1605.7,6.60909167]
[1745132268918,5.75626318,1605.8,1605.7,5.79639167]
[1745132269122,7.00184318,1605.8,1605.7,4.55076167]